[Event "Titled Tuesday Blitz February 28 Late 2023"]
[White "Todev, Simeon"]
[Black "Urbina Perez, Juan Antonio"]
[WhiteFideId "2925133"]
[BlackFideId "2217368"]
[WhiteElo "1938"]
[BlackElo "2197"]
[Result "0-1"]
[Round "02"]
[TimeControl "180+2"]
[Date "2023.02.28"]
[WhiteClock "0:00:01"]
[BlackClock "0:00:15"]

1. e4 {[%clk 0:02:52]}  e6 {[%clk 0:03:00]} 2. d4 {[%clk 0:02:49]}  d5 {[%clk 0:03:00]} 3. Nc3 {[%clk 0:02:44]}  Bb4 {[%clk 0:02:59]} 4. e5 {[%clk 0:02:38]}  Ne7 {[%clk 0:02:58]} 5. Qg4 {[%clk 0:02:33]}  Ng6 {[%clk 0:02:53]} 6. h4 {[%clk 0:02:31]}  h5 {[%clk 0:02:53]} 7. Qg3 {[%clk 0:02:30]}  Nc6 {[%clk 0:02:34]} 8. Be3 {[%clk 0:02:21]}  Nce7 {[%clk 0:02:29]} 9. Bd3 {[%clk 0:02:19]}  Qd7 {[%clk 0:02:22]} 10. Nh3 {[%clk 0:02:17]}  Bxc3+ {[%clk 0:02:19]} 11. bxc3 {[%clk 0:02:13]}  Qc6 {[%clk 0:02:20]} 12. Bd2 {[%clk 0:02:08]}  b6 {[%clk 0:02:07]} 13. a4 {[%clk 0:02:04]}  Bd7 {[%clk 0:02:02]} 14. Nf4 {[%clk 0:01:55]}  Nxf4 {[%clk 0:01:48]} 15. Qxf4 {[%clk 0:01:51]}  Qb7 {[%clk 0:01:42]} 16. Rh3 {[%clk 0:01:42]}  Nf5 {[%clk 0:01:42]} 17. Bxf5 {[%clk 0:01:30]}  exf5 {[%clk 0:01:42]} 18. Rg3 {[%clk 0:01:25]}  g6 {[%clk 0:01:37]} 19. Qg5 {[%clk 0:01:16]}  Be6 {[%clk 0:01:37]} 20. Qf6 {[%clk 0:01:13]}  Kd7 {[%clk 0:01:37]} 21. c4 {[%clk 0:00:50]}  dxc4 {[%clk 0:01:31]} 22. O-O-O {[%clk 0:00:48]}  Qd5 {[%clk 0:01:28]} 23. Bg5 {[%clk 0:00:33]}  Kc6 {[%clk 0:01:27]} 24. Rc3 {[%clk 0:00:27]}  Kb7 {[%clk 0:01:26]} 25. f3 {[%clk 0:00:26]}  a5 {[%clk 0:01:23]} 26. Qe7 {[%clk 0:00:19]}  Rhe8 {[%clk 0:01:18]} 27. Qa3 {[%clk 0:00:17]}  Ka6 {[%clk 0:01:14]} 28. Qb2 {[%clk 0:00:15]}  Bd7 {[%clk 0:01:12]} 29. Qa2 {[%clk 0:00:11]}  Be6 {[%clk 0:01:06]} 30. Be3 {[%clk 0:00:08]}  Red8 {[%clk 0:01:03]} 31. Qb2 {[%clk 0:00:08]}  Qc6 {[%clk 0:00:58]} 32. Qa2 {[%clk 0:00:06]}  Bd5 {[%clk 0:00:56]} 33. Bg5 {[%clk 0:00:06]}  Re8 {[%clk 0:00:56]} 34. Bf4 {[%clk 0:00:05]}  Re6 {[%clk 0:00:56]} 35. Kd2 {[%clk 0:00:04]}  Rae8 {[%clk 0:00:50]} 36. Rb1 {[%clk 0:00:04]}  f6 {[%clk 0:00:50]} 37. Rb5 {[%clk 0:00:03]}  fxe5 {[%clk 0:00:46]} 38. Bxe5 {[%clk 0:00:03]}  Rd8 {[%clk 0:00:44]} 39. Ke3 {[%clk 0:00:02]}  Rd7 {[%clk 0:00:42]} 40. Qb2 {[%clk 0:00:02]}  Re8 {[%clk 0:00:29]} 41. Kf2 {[%clk 0:00:02]}  Qe6 {[%clk 0:00:23]} 42. Re3 {[%clk 0:00:02]}  Qf7 {[%clk 0:00:22]} 43. Bf4 {[%clk 0:00:02]}  Bc6 {[%clk 0:00:20]} 44. Rbe5 {[%clk 0:00:01]}  Rxe5 {[%clk 0:00:20]} 45. Rxe5 {[%clk 0:00:01]}  Re7 {[%clk 0:00:19]} 46. Qc3 {[%clk 0:00:02]}  Rxe5 {[%clk 0:00:18]} 47. Bxe5 {[%clk 0:00:02]}  Qd5 {[%clk 0:00:18]} 48. Qe3 {[%clk 0:00:02]}  Kb7 {[%clk 0:00:17]} 49. Qg5 {[%clk 0:00:02]}  Qe6 {[%clk 0:00:16]} 50. c3 {[%clk 0:00:01]}  Bxa4 {[%clk 0:00:16]} 51. Qd8 {[%clk 0:00:01]}  Bc6 {[%clk 0:00:16]} 52. Bf4 {[%clk 0:00:01]}  Qd7 {[%clk 0:00:15]} 53. Qf6 {[%clk 0:00:01]}  a4 {[%clk 0:00:15]} 0-1


[Site "https://www.chess.com"]

[Event "Titled Tuesday Blitz February 28 Late 2023"]
[White "Prieto Aranguren, Alain"]
[Black "Lawson, Eric"]
[WhiteFideId "2268906"]
[BlackFideId "2604116"]
[WhiteElo "2209"]
[BlackElo "2504"]
[Result "0-1"]
[Round "02"]
[TimeControl "180+2"]
[Date "2023.02.28"]
[WhiteClock "0:02:18"]
[BlackClock "0:02:13"]

1. d4 {[%clk 0:02:57]}  d5 {[%clk 0:02:59]} 2. c4 {[%clk 0:02:57]}  c6 {[%clk 0:03:00]} 3. cxd5 {[%clk 0:02:56]}  cxd5 {[%clk 0:03:00]} 4. Nf3 {[%clk 0:02:56]}  Nf6 {[%clk 0:03:00]} 5. Nc3 {[%clk 0:02:56]}  Nc6 {[%clk 0:03:01]} 6. Bf4 {[%clk 0:02:56]}  Bf5 {[%clk 0:03:01]} 7. e3 {[%clk 0:02:56]}  e6 {[%clk 0:03:01]} 8. Bd3 {[%clk 0:02:56]}  Bg6 {[%clk 0:02:56]} 9. O-O {[%clk 0:02:55]}  Bd6 {[%clk 0:02:56]} 10. Ne5 {[%clk 0:02:53]}  Bxe5 {[%clk 0:02:55]} 11. dxe5 {[%clk 0:02:53]}  Nd7 {[%clk 0:02:55]} 12. Bxg6 {[%clk 0:02:52]}  hxg6 {[%clk 0:02:55]} 13. e4 {[%clk 0:02:53]}  d4 {[%clk 0:02:54]} 14. Nb5 {[%clk 0:02:52]}  Ndxe5 {[%clk 0:02:38]} 15. Bxe5 {[%clk 0:02:38]}  Nxe5 {[%clk 0:02:39]} 16. Qxd4 {[%clk 0:02:36]}  Qxd4 {[%clk 0:02:32]} 17. Nxd4 {[%clk 0:02:35]}  O-O-O {[%clk 0:02:27]} 18. Rfd1 {[%clk 0:02:32]}  Rd7 {[%clk 0:02:20]} 19. f4 {[%clk 0:02:21]}  Rhd8 {[%clk 0:02:19]} 20. Rac1+ {[%clk 0:02:18]}  Nc6 {[%clk 0:02:13]} 0-1


[Site "https://www.chess.com"]

[Event "Titled Tuesday Blitz February 28 Late 2023"]
[White "Romero Ruscalleda, Josep"]
[Black "Cheng, Xiao"]
[WhiteFideId "2231859"]
[BlackFideId "2022915"]
[WhiteElo "2183"]
[BlackElo "2497"]
[Result "0-1"]
[Round "02"]
[TimeControl "180+2"]
[Date "2023.02.28"]
[WhiteClock "0:00:12"]
[BlackClock "0:00:19"]

1. e4 {[%clk 0:03:00]}  c5 {[%clk 0:02:52]} 2. c3 {[%clk 0:03:00]}  Nf6 {[%clk 0:02:50]} 3. e5 {[%clk 0:03:00]}  Nd5 {[%clk 0:02:47]} 4. Nf3 {[%clk 0:03:01]}  Nc6 {[%clk 0:02:44]} 5. Bc4 {[%clk 0:03:01]}  Nb6 {[%clk 0:02:43]} 6. Bb3 {[%clk 0:03:02]}  c4 {[%clk 0:02:43]} 7. Bc2 {[%clk 0:03:02]}  d5 {[%clk 0:02:44]} 8. exd6 {[%clk 0:03:02]}  Qxd6 {[%clk 0:02:41]} 9. O-O {[%clk 0:03:02]}  g6 {[%clk 0:02:39]} 10. Re1 {[%clk 0:03:02]}  Bg7 {[%clk 0:02:39]} 11. h3 {[%clk 0:03:01]}  O-O {[%clk 0:02:39]} 12. Qe2 {[%clk 0:03:01]}  e5 {[%clk 0:02:34]} 13. b3 {[%clk 0:02:58]}  Be6 {[%clk 0:02:33]} 14. Ba3 {[%clk 0:02:57]}  Qd7 {[%clk 0:02:29]} 15. Bxf8 {[%clk 0:02:57]}  Rxf8 {[%clk 0:02:29]} 16. Na3 {[%clk 0:02:52]}  cxb3 {[%clk 0:02:20]} 17. axb3 {[%clk 0:02:52]}  h6 {[%clk 0:02:17]} 18. Nc4 {[%clk 0:02:49]}  Nxc4 {[%clk 0:02:15]} 19. bxc4 {[%clk 0:02:49]}  f5 {[%clk 0:02:15]} 20. d4 {[%clk 0:02:46]}  e4 {[%clk 0:02:10]} 21. Nd2 {[%clk 0:02:27]}  Bf7 {[%clk 0:02:06]} 22. Ba4 {[%clk 0:02:24]}  Qc7 {[%clk 0:01:59]} 23. Bxc6 {[%clk 0:02:20]}  bxc6 {[%clk 0:01:58]} 24. c5 {[%clk 0:02:18]}  Bd5 {[%clk 0:01:54]} 25. Nc4 {[%clk 0:02:16]}  f4 {[%clk 0:01:52]} 26. Nd6 {[%clk 0:02:08]}  f3 {[%clk 0:01:51]} 27. Qe3 {[%clk 0:02:08]}  fxg2 {[%clk 0:01:50]} 28. Nxe4 {[%clk 0:02:03]}  Qd7 {[%clk 0:01:41]} 29. Qg3 {[%clk 0:01:58]}  Qf5 {[%clk 0:01:24]} 30. Nd6 {[%clk 0:01:54]}  Qc2 {[%clk 0:01:18]} 31. Rxa7 {[%clk 0:01:34]}  Qd2 {[%clk 0:01:15]} 32. Qe3 {[%clk 0:01:26]}  Qc2 {[%clk 0:01:04]} 33. Re7 {[%clk 0:00:56]}  Rf3 {[%clk 0:00:57]} 34. Rxg7+ {[%clk 0:00:47]}  Kxg7 {[%clk 0:00:56]} 35. Qe7+ {[%clk 0:00:43]}  Bf7 {[%clk 0:00:55]} 36. Qe5+ {[%clk 0:00:38]}  Kh7 {[%clk 0:00:53]} 37. Qe2 {[%clk 0:00:35]}  Qxc3 {[%clk 0:00:51]} 38. Nxf7 {[%clk 0:00:26]}  Rxf7 {[%clk 0:00:50]} 39. Qe3 {[%clk 0:00:26]}  Qc4 {[%clk 0:00:42]} 40. Kxg2 {[%clk 0:00:27]}  Rd7 {[%clk 0:00:38]} 41. Rd1 {[%clk 0:00:24]}  Qd5+ {[%clk 0:00:38]} 42. Qf3 {[%clk 0:00:23]}  Kg7 {[%clk 0:00:36]} 43. Qxd5 {[%clk 0:00:23]}  Rxd5 {[%clk 0:00:36]} 44. Kf3 {[%clk 0:00:23]}  Kf6 {[%clk 0:00:37]} 45. Ke4 {[%clk 0:00:24]}  Rh5 {[%clk 0:00:37]} 46. Rd3 {[%clk 0:00:23]}  Rh4+ {[%clk 0:00:36]} 47. Ke3 {[%clk 0:00:21]}  Rxh3+ {[%clk 0:00:36]} 48. Kd2 {[%clk 0:00:22]}  Rh2 {[%clk 0:00:36]} 49. Rf3+ {[%clk 0:00:21]}  Ke6 {[%clk 0:00:36]} 50. Kc3 {[%clk 0:00:21]}  g5 {[%clk 0:00:35]} 51. Kc4 {[%clk 0:00:21]}  g4 {[%clk 0:00:34]} 52. Rf8 {[%clk 0:00:19]}  h5 {[%clk 0:00:34]} 53. Re8+ {[%clk 0:00:19]}  Kd7 {[%clk 0:00:34]} 54. Rf8 {[%clk 0:00:18]}  h4 {[%clk 0:00:33]} 55. d5 {[%clk 0:00:18]}  cxd5+ {[%clk 0:00:33]} 56. Kxd5 {[%clk 0:00:18]}  g3 {[%clk 0:00:34]} 57. c6+ {[%clk 0:00:18]}  Ke7 {[%clk 0:00:33]} 58. c7 {[%clk 0:00:18]}  Kxf8 {[%clk 0:00:32]} 59. c8=Q+ {[%clk 0:00:18]}  Kf7 {[%clk 0:00:32]} 60. Qd7+ {[%clk 0:00:19]}  Kg6 {[%clk 0:00:32]} 61. Qe6+ {[%clk 0:00:18]}  Kg5 {[%clk 0:00:32]} 62. Qe5+ {[%clk 0:00:18]}  Kg4 {[%clk 0:00:33]} 63. Qe4+ {[%clk 0:00:18]}  Kh3 {[%clk 0:00:32]} 64. f4 {[%clk 0:00:18]}  Rd2+ {[%clk 0:00:30]} 65. Kc4 {[%clk 0:00:18]}  Rf2 {[%clk 0:00:30]} 66. f5 {[%clk 0:00:17]}  Kh2 {[%clk 0:00:30]} 67. Qe5 {[%clk 0:00:16]}  h3 {[%clk 0:00:30]} 68. f6 {[%clk 0:00:16]}  Kg2 {[%clk 0:00:29]} 69. Qe4+ {[%clk 0:00:16]}  Kg1 {[%clk 0:00:29]} 70. Qe3 {[%clk 0:00:16]}  Kg2 {[%clk 0:00:26]} 71. Qe4+ {[%clk 0:00:16]}  Kg1 {[%clk 0:00:24]} 72. Qd4 {[%clk 0:00:16]}  h2 {[%clk 0:00:23]} 73. f7 {[%clk 0:00:16]}  h1=Q {[%clk 0:00:23]} 74. f8=Q {[%clk 0:00:16]}  Qc6+ {[%clk 0:00:22]} 75. Kd3 {[%clk 0:00:15]}  Qb5+ {[%clk 0:00:20]} 76. Ke3 {[%clk 0:00:12]}  Qe2# {[%clk 0:00:19]} 0-1


[Site "https://www.chess.com"]

[Event "Titled Tuesday Blitz February 28 Late 2023"]
[White "Lopez Del Alamo, Antonio"]
[Black "Molenda, Marcin"]
[WhiteFideId "2227339"]
[BlackFideId "1173065"]
[WhiteElo "2175"]
[BlackElo "2286"]
[Result "1-0"]
[Round "02"]
[TimeControl "180+2"]
[Date "2023.02.28"]
[WhiteClock "0:00:05"]
[BlackClock "0:00:04"]

1. e4 {[%clk 0:03:00]}  c5 {[%clk 0:02:55]} 2. Nf3 {[%clk 0:02:59]}  d6 {[%clk 0:02:54]} 3. d4 {[%clk 0:02:59]}  cxd4 {[%clk 0:02:55]} 4. Nxd4 {[%clk 0:02:58]}  Nf6 {[%clk 0:02:56]} 5. Nc3 {[%clk 0:02:58]}  a6 {[%clk 0:02:56]} 6. Be2 {[%clk 0:02:52]}  e5 {[%clk 0:02:54]} 7. Nb3 {[%clk 0:02:53]}  Be6 {[%clk 0:02:55]} 8. Be3 {[%clk 0:02:52]}  Be7 {[%clk 0:02:54]} 9. Nd5 {[%clk 0:02:52]}  Nxd5 {[%clk 0:02:53]} 10. exd5 {[%clk 0:02:50]}  Bf5 {[%clk 0:02:53]} 11. c4 {[%clk 0:02:49]}  a5 {[%clk 0:02:53]} 12. Rc1 {[%clk 0:02:43]}  O-O {[%clk 0:02:48]} 13. O-O {[%clk 0:02:42]}  a4 {[%clk 0:02:43]} 14. Na1 {[%clk 0:02:41]}  Nd7 {[%clk 0:02:43]} 15. Nc2 {[%clk 0:02:41]}  Bg6 {[%clk 0:02:43]} 16. Qd2 {[%clk 0:02:31]}  f5 {[%clk 0:02:42]} 17. f4 {[%clk 0:02:27]}  b6 {[%clk 0:02:35]} 18. Nb4 {[%clk 0:02:25]}  Bf6 {[%clk 0:02:34]} 19. Rfe1 {[%clk 0:02:16]}  Nc5 {[%clk 0:02:33]} 20. Nc6 {[%clk 0:02:07]}  Qc7 {[%clk 0:02:28]} 21. Qc2 {[%clk 0:01:57]}  Rf7 {[%clk 0:02:11]} 22. b4 {[%clk 0:01:55]}  axb3 {[%clk 0:02:11]} 23. axb3 {[%clk 0:01:54]}  Rff8 {[%clk 0:02:08]} 24. Bf1 {[%clk 0:01:50]}  Bh5 {[%clk 0:02:03]} 25. Bxc5 {[%clk 0:01:27]}  bxc5 {[%clk 0:01:59]} 26. fxe5 {[%clk 0:01:14]}  Bg5 {[%clk 0:01:56]} 27. e6 {[%clk 0:01:08]}  Be8 {[%clk 0:01:43]} 28. Rcd1 {[%clk 0:01:04]}  Bh4 {[%clk 0:01:23]} 29. g3 {[%clk 0:01:02]}  Bf6 {[%clk 0:01:23]} 30. Bg2 {[%clk 0:01:01]}  Bh5 {[%clk 0:01:13]} 31. Rf1 {[%clk 0:00:53]}  g6 {[%clk 0:01:12]} 32. Rde1 {[%clk 0:00:52]}  Ra3 {[%clk 0:01:10]} 33. h3 {[%clk 0:00:30]}  Rfa8 {[%clk 0:01:09]} 34. g4 {[%clk 0:00:22]}  Ra2 {[%clk 0:01:07]} 35. Qd3 {[%clk 0:00:21]}  Bh4 {[%clk 0:00:28]} 36. gxh5 {[%clk 0:00:20]}  Bxe1 {[%clk 0:00:28]} 37. Rxe1 {[%clk 0:00:20]}  Ra1 {[%clk 0:00:29]} 38. Qe2 {[%clk 0:00:17]}  Qg7 {[%clk 0:00:19]} 39. Kh2 {[%clk 0:00:16]}  gxh5 {[%clk 0:00:17]} 40. Rxa1 {[%clk 0:00:14]}  Qxa1 {[%clk 0:00:09]} 41. e7 {[%clk 0:00:14]}  Re8 {[%clk 0:00:09]} 42. Qe6+ {[%clk 0:00:14]}  Kh8 {[%clk 0:00:08]} 43. Qxf5 {[%clk 0:00:13]}  h4 {[%clk 0:00:07]} 44. Be4 {[%clk 0:00:12]}  Qg7 {[%clk 0:00:06]} 45. Qg4 {[%clk 0:00:09]}  Qb2+ {[%clk 0:00:06]} 46. Bg2 {[%clk 0:00:09]}  Rg8 {[%clk 0:00:05]} 47. Qf3 {[%clk 0:00:06]}  Qg7 {[%clk 0:00:03]} 48. Nd8 {[%clk 0:00:05]}  Qxe7 {[%clk 0:00:03]} 49. Ne6 {[%clk 0:00:05]}  Re8 {[%clk 0:00:01]} 50. Qc3+ {[%clk 0:00:06]}  Kg8 {[%clk 0:00:01]} 51. Qg3+ {[%clk 0:00:06]}  Kh8 {[%clk 0:00:01]} 52. Qg4 {[%clk 0:00:05]}  Qf7 {[%clk 0:00:01]} 53. Qe2 {[%clk 0:00:05]}  Kg8 {[%clk 0:00:02]} 54. Be4 {[%clk 0:00:03]}  Qf6 {[%clk 0:00:02]} 55. Qf3 {[%clk 0:00:03]}  Qxf3 {[%clk 0:00:02]} 56. Bxf3 {[%clk 0:00:04]}  Kf7 {[%clk 0:00:02]} 57. Bh5+ {[%clk 0:00:04]}  Ke7 {[%clk 0:00:02]} 58. Bxe8 {[%clk 0:00:05]}  Kxe8 {[%clk 0:00:03]} 59. Ng5 {[%clk 0:00:05]}  h6 {[%clk 0:00:03]} 60. Nf3 {[%clk 0:00:05]}  Ke7 {[%clk 0:00:04]} 61. Nxh4 {[%clk 0:00:05]} 1-0


[Site "https://www.chess.com"]

[Event "Titled Tuesday Blitz February 28 Late 2023"]
[White "Kaufman, Raymond"]
[Black "Prydun, Andriy"]
[WhiteFideId "2015056"]
[BlackFideId "14145898"]
[WhiteElo "2321"]
[BlackElo "2164"]
[Result "0-1"]
[Round "02"]
[TimeControl "180+2"]
[Date "2023.02.28"]
[WhiteClock "0:00:39"]
[BlackClock "0:01:55"]

1. d4 {[%clk 0:03:00]}  Nf6 {[%clk 0:02:59]} 2. c4 {[%clk 0:03:00]}  e6 {[%clk 0:02:59]} 3. Nf3 {[%clk 0:02:59]}  d5 {[%clk 0:02:59]} 4. Nc3 {[%clk 0:02:56]}  Be7 {[%clk 0:02:59]} 5. g3 {[%clk 0:02:55]}  O-O {[%clk 0:02:58]} 6. Bg2 {[%clk 0:02:55]}  Nbd7 {[%clk 0:02:58]} 7. O-O {[%clk 0:02:54]}  c6 {[%clk 0:02:58]} 8. Qd3 {[%clk 0:02:49]}  b6 {[%clk 0:02:58]} 9. Rd1 {[%clk 0:02:47]}  a5 {[%clk 0:02:59]} 10. h4 {[%clk 0:02:30]}  Ba6 {[%clk 0:02:59]} 11. b3 {[%clk 0:02:29]}  a4 {[%clk 0:02:59]} 12. Ne5 {[%clk 0:02:23]}  axb3 {[%clk 0:02:57]} 13. axb3 {[%clk 0:02:18]}  Bxc4 {[%clk 0:02:56]} 14. Rxa8 {[%clk 0:02:18]}  Qxa8 {[%clk 0:02:56]} 15. bxc4 {[%clk 0:02:17]}  Nxe5 {[%clk 0:02:55]} 16. dxe5 {[%clk 0:02:17]}  Nd7 {[%clk 0:02:56]} 17. cxd5 {[%clk 0:02:15]}  cxd5 {[%clk 0:02:57]} 18. Bf4 {[%clk 0:02:13]}  Rc8 {[%clk 0:02:43]} 19. Nb5 {[%clk 0:02:12]}  Nc5 {[%clk 0:02:38]} 20. Qe3 {[%clk 0:02:01]}  Qa4 {[%clk 0:02:36]} 21. Nd6 {[%clk 0:02:00]}  Qxd1+ {[%clk 0:02:36]} 22. Kh2 {[%clk 0:01:59]}  Rf8 {[%clk 0:02:36]} 23. h5 {[%clk 0:01:54]}  Qb3 {[%clk 0:02:31]} 24. Qd2 {[%clk 0:01:50]}  Ne4 {[%clk 0:02:21]} 25. Bxe4 {[%clk 0:01:34]}  dxe4 {[%clk 0:02:22]} 26. h6 {[%clk 0:01:33]}  Qd5 {[%clk 0:02:15]} 27. hxg7 {[%clk 0:01:30]}  Rd8 {[%clk 0:02:13]} 28. Qb4 {[%clk 0:01:25]}  Bxd6 {[%clk 0:02:10]} 29. exd6 {[%clk 0:01:25]}  e5 {[%clk 0:02:11]} 30. Qxb6 {[%clk 0:01:22]}  Qxd6 {[%clk 0:02:11]} 31. Qxd6 {[%clk 0:01:21]}  Rxd6 {[%clk 0:02:12]} 32. Bxe5 {[%clk 0:01:21]}  Rh6+ {[%clk 0:02:12]} 33. Kg2 {[%clk 0:01:15]}  f6 {[%clk 0:02:13]} 34. Bd4 {[%clk 0:01:08]}  Kxg7 {[%clk 0:02:10]} 35. f3 {[%clk 0:01:07]}  exf3+ {[%clk 0:02:10]} 36. exf3 {[%clk 0:01:07]}  Rg6 {[%clk 0:02:11]} 37. g4 {[%clk 0:01:05]}  Kf7 {[%clk 0:02:09]} 38. Kg3 {[%clk 0:01:04]}  f5 {[%clk 0:02:10]} 39. Kf4 {[%clk 0:01:03]}  fxg4 {[%clk 0:02:11]} 40. fxg4 {[%clk 0:01:03]}  Ke6 {[%clk 0:02:11]} 41. g5 {[%clk 0:01:01]}  Rg8 {[%clk 0:02:09]} 42. Bf6 {[%clk 0:00:56]}  Ra8 {[%clk 0:02:08]} 43. Kg4 {[%clk 0:00:55]}  Kf7 {[%clk 0:02:07]} 44. Be5 {[%clk 0:00:54]}  Kg6 {[%clk 0:02:06]} 45. Bf6 {[%clk 0:00:54]}  Ra4+ {[%clk 0:02:06]} 46. Kg3 {[%clk 0:00:54]}  Kf5 {[%clk 0:02:07]} 47. Kf2 {[%clk 0:00:53]}  Ra3 {[%clk 0:02:06]} 48. Kg2 {[%clk 0:00:52]}  Rb3 {[%clk 0:02:07]} 49. Kh2 {[%clk 0:00:52]}  Kg4 {[%clk 0:02:07]} 50. Kg2 {[%clk 0:00:51]}  Rd3 {[%clk 0:02:08]} 51. Kf2 {[%clk 0:00:50]}  h5 {[%clk 0:01:55]} 52. gxh6 {[%clk 0:00:49]}  Rf3+ {[%clk 0:01:55]} 53. Kg2 {[%clk 0:00:39]}  Rxf6 {[%clk 0:01:55]} 0-1


[Site "https://www.chess.com"]

[Event "Titled Tuesday Blitz February 28 Late 2023"]
[White "Tsyhanchuk, Stanislav"]
[Black "Petukhov, Dmitry"]
[WhiteFideId "13505130"]
[BlackFideId "4142748"]
[WhiteElo "2173"]
[BlackElo "2311"]
[Result "1/2-1/2"]
[Round "02"]
[TimeControl "180+2"]
[Date "2023.02.28"]
[WhiteClock "0:00:12"]
[BlackClock "0:00:20"]

1. c4 {[%clk 0:03:00]}  e5 {[%clk 0:02:51]} 2. Nc3 {[%clk 0:03:00]}  Nf6 {[%clk 0:02:51]} 3. Nf3 {[%clk 0:03:00]}  Nc6 {[%clk 0:02:50]} 4. e4 {[%clk 0:02:59]}  Bc5 {[%clk 0:02:50]} 5. Nxe5 {[%clk 0:02:59]}  Bxf2+ {[%clk 0:02:49]} 6. Kxf2 {[%clk 0:02:58]}  Nxe5 {[%clk 0:02:50]} 7. d4 {[%clk 0:02:53]}  Ng6 {[%clk 0:02:46]} 8. Be2 {[%clk 0:02:47]}  d6 {[%clk 0:02:45]} 9. Rf1 {[%clk 0:02:45]}  O-O {[%clk 0:02:43]} 10. Kg1 {[%clk 0:02:45]}  h6 {[%clk 0:02:41]} 11. Nd5 {[%clk 0:02:16]}  Nxe4 {[%clk 0:02:34]} 12. Bd3 {[%clk 0:02:08]}  Ng5 {[%clk 0:02:26]} 13. Bxg5 {[%clk 0:01:45]}  Qxg5 {[%clk 0:02:07]} 14. Bxg6 {[%clk 0:01:41]}  fxg6 {[%clk 0:02:00]} 15. Rxf8+ {[%clk 0:01:37]}  Kxf8 {[%clk 0:02:00]} 16. Nxc7 {[%clk 0:01:34]}  Rb8 {[%clk 0:02:01]} 17. Nb5 {[%clk 0:01:27]}  d5 {[%clk 0:01:43]} 18. Qf3+ {[%clk 0:01:17]}  Qf5 {[%clk 0:01:38]} 19. Rf1 {[%clk 0:01:07]}  Qxf3 {[%clk 0:01:23]} 20. Rxf3+ {[%clk 0:01:08]}  Ke7 {[%clk 0:01:23]} 21. cxd5 {[%clk 0:00:44]}  a6 {[%clk 0:01:22]} 22. d6+ {[%clk 0:00:24]}  Ke6 {[%clk 0:00:44]} 23. Re3+ {[%clk 0:00:23]}  Kd7 {[%clk 0:00:44]} 24. Re7+ {[%clk 0:00:23]}  Kc6 {[%clk 0:00:45]} 25. Na7+ {[%clk 0:00:14]}  Kxd6 {[%clk 0:00:45]} 26. Nxc8+ {[%clk 0:00:15]}  Rxc8 {[%clk 0:00:46]} 27. Rxb7 {[%clk 0:00:15]}  Rc2 {[%clk 0:00:38]} 28. Rb6+ {[%clk 0:00:14]}  Kd5 {[%clk 0:00:38]} 29. Rxg6 {[%clk 0:00:12]}  Rxb2 {[%clk 0:00:36]} 30. Rxa6 {[%clk 0:00:12]}  Kxd4 {[%clk 0:00:33]} 31. h4 {[%clk 0:00:12]}  Ke5 {[%clk 0:00:32]} 32. Kh2 {[%clk 0:00:12]}  Kf5 {[%clk 0:00:29]} 33. Kh3 {[%clk 0:00:12]}  h5 {[%clk 0:00:29]} 34. g3 {[%clk 0:00:12]}  g6 {[%clk 0:00:28]} 35. Ra5+ {[%clk 0:00:12]}  Kf6 {[%clk 0:00:28]} 36. a4 {[%clk 0:00:12]}  Ra2 {[%clk 0:00:27]} 37. Ra6+ {[%clk 0:00:11]}  Kf5 {[%clk 0:00:27]} 38. Ra5+ {[%clk 0:00:11]}  Kf6 {[%clk 0:00:27]} 39. Ra6+ {[%clk 0:00:10]}  Kf5 {[%clk 0:00:28]} 40. Ra7 {[%clk 0:00:10]}  Kf6 {[%clk 0:00:27]} 41. a5 {[%clk 0:00:10]}  Ke6 {[%clk 0:00:25]} 42. a6 {[%clk 0:00:10]}  Kf6 {[%clk 0:00:26]} 43. Ra8 {[%clk 0:00:10]}  Kg7 {[%clk 0:00:23]} 44. a7 {[%clk 0:00:10]}  Kh7 {[%clk 0:00:23]} 45. g4 {[%clk 0:00:10]}  Ra3+ {[%clk 0:00:23]} 46. Kg2 {[%clk 0:00:10]}  hxg4 {[%clk 0:00:24]} 47. Kh2 {[%clk 0:00:11]}  Kg7 {[%clk 0:00:23]} 48. Kg2 {[%clk 0:00:11]}  Kh7 {[%clk 0:00:22]} 49. Kh2 {[%clk 0:00:12]}  Kg7 {[%clk 0:00:20]} 50. Kg2 {[%clk 0:00:12]}  Kh7 {[%clk 0:00:20]} 1/2-1/2


[Site "https://www.chess.com"]